bitfinex-derivatives/quotes_BNBF0:USTF0_20251027
["timestamp","ask_amount","ask_price","bid_price","bid_amount"]
[1761548745224,2.1611392,1159.4,1156.1,0.56052433]
[1761548745421,2.1611392,1159.4,1156.0,1.577]
[1761548745422,2.1611392,1159.4,1156.2,0.56052433]
[1761548745621,2.1611392,1159.4,1156.3,0.56052433]
[1761548745825,2.1611392,1159.4,1156.4,0.56052433]
[1761548746125,2.1611392,1159.4,1156.0,1.577]
[1761548746325,2.1611392,1159.4,1156.1,0.56042658]
[1761548746525,2.1611392,1159.4,1156.2,0.56042658]
[1761548746822,2.1611392,1159.4,1156.3,0.56042658]
[1761548747026,2.1611392,1159.4,1156.4,0.56042658]
[1761548747223,2.1611392,1159.4,1156.5,0.56042658]
[1761548747523,2.1611392,1159.4,1156.0,1.577]
[1761548747729,2.1611392,1159.4,1156.1,0.56031242]
[1761548747927,2.1611392,1159.4,1156.2,0.56031242]
[1761548748131,2.1611392,1159.5,1156.3,0.56031242]
[1761548748332,2.1611392,1159.5,1156.4,0.56031242]
[1761548748529,2.1611392,1159.5,1156.5,0.56031242]
[1761548748731,2.1611392,1159.6,1156.0,1.577]
[1761548748934,2.1611392,1159.6,1156.1,0.56025425]
[1761548749130,2.1611392,1159.6,1156.2,0.56025425]
[1761548749332,2.1611392,1159.5,1156.3,0.56025425]
[1761548749531,2.1611392,1159.5,1156.4,0.56025425]
[1761548749730,2.1611392,1159.5,1156.5,0.56025425]
[1761548749934,2.1611392,1159.5,1156.0,2.21416913]
[1761548750134,2.1611392,1159.5,1156.1,0.56008023]
[1761548750335,2.1611392,1159.5,1156.2,0.56008023]
[1761548750532,2.1611392,1159.5,1156.3,0.56008023]
[1761548750834,2.1611392,1159.5,1156.4,0.56008023]
[1761548751033,2.1611392,1159.5,1156.5,0.56008023]
[1761548751235,2.1611392,1159.5,1156.6,0.56008023]
[1761548751434,2.1611392,1159.7,1156.0,2.21416913]
[1761548751637,2.1611392,1159.7,1156.1,0.55984044]
[1761548751833,2.1611392,1159.7,1156.2,0.55984044]
[1761548752037,2.1611392,1159.7,1156.3,0.55984044]
[1761548752238,2.1611392,1159.7,1156.4,0.55984044]
[1761548752439,2.1611392,1158.7,1156.5,0.55984044]
[1761548752637,2.1611392,1158.7,1156.6,0.55984044]
[1761548752938,2.1611392,1158.7,1156.2,0.63716913]
[1761548752939,2.1611392,1158.8,1156.2,0.63716913]
[1761548753139,2.1611392,1158.8,1156.3,0.55956714]
[1761548753435,2.1611392,1158.8,1156.2,0.63716913]
[1761548753436,2.1611392,1158.8,1156.4,0.55956714]
[1761548753640,2.1611392,1158.8,1156.5,0.55956714]
[1761548753834,2.1611392,1158.8,1156.6,0.55956714]
[1761548754035,2.1611392,1158.8,1156.2,0.63716913]
[1761548754238,2.1611392,1158.8,1156.3,0.55932656]
[1761548754439,2.1611392,1158.8,1156.4,0.55932656]
[1761548754733,2.1611392,1158.8,1156.5,0.55932656]
[1761548754938,2.1611392,1158.7,1156.1,0.63716913]
[1761548755139,2.1611392,1158.7,1156.2,0.55930113]
[1761548755335,2.1611392,1158.7,1156.3,0.55930113]
[1761548755541,2.1611392,1159.0,1156.4,0.55930113]
[1761548755738,2.1611392,1159.0,1156.5,0.55930113]
[1761548755936,2.1611392,1159.0,1156.1,0.63716913]
[1761548756134,2.1611392,1159.0,1156.2,0.55916717]
[1761548756340,2.1611392,1159.0,1156.3,0.55916717]
[1761548756543,2.1611392,1158.9,1156.4,0.55916717]
[1761548756741,2.1611392,1159.2,1156.5,0.55916717]
[1761548757036,2.1611392,1159.2,1156.6,0.55916717]
[1761548757237,3.0255949,1159.6,1156.7,0.55916717]
[1761548757435,3.0255949,1159.6,1156.8,0.55916717]
[1761548757641,2.1611392,1159.8,1156.3,0.63716913]
[1761548757839,2.1611392,1159.8,1156.4,0.55822945]
[1761548758138,2.1611392,1159.9,1156.5,0.55822945]
[1761548758337,2.1611392,1159.9,1156.6,0.55822945]
[1761548758642,2.1611392,1159.9,1156.7,0.55822945]
[1761548758838,2.1611392,1159.9,1156.8,0.55822945]
[1761548759042,2.1611392,1159.9,1156.3,0.63716913]
[1761548759338,2.1611392,1160.2,1156.4,0.55767624]
[1761548759642,2.1611392,1160.4,1156.5,0.55767624]
[1761548759841,2.1611392,1160.4,1156.6,0.55767624]
[1761548760141,2.1611392,1160.4,1156.7,0.55767624]
[1761548760441,2.1611392,1160.4,1156.8,0.55767624]
[1761548760737,2.1611392,1160.4,1156.2,0.63716913]
[1761548760941,2.1611392,1160.4,1156.3,0.55764052]
[1761548761139,2.1611392,1160.4,1156.4,0.55764052]
[1761548761337,2.1611392,1160.5,1156.5,0.55764052]
[1761548761541,2.1611392,1160.5,1156.6,0.55764052]
[1761548761741,2.1611392,1160.5,1156.7,0.55764052]
[1761548761939,2.1611392,1160.5,1156.1,0.63716913]
[1761548761940,2.1611392,1160.4,1156.1,0.63716913]
[1761548762144,2.1611392,1160.4,1156.2,0.55788649]
[1761548762344,2.1611392,1159.6,1156.3,0.55788649]
[1761548762540,2.1611392,1159.6,1156.4,0.55788649]
[1761548762739,2.1611392,1159.6,1156.5,0.55788649]
[1761548763044,2.1611392,1159.6,1156.0,2.21416913]
[1761548763249,2.1611392,1159.5,1156.3,0.63716913]
[1761548763544,2.1611392,1159.5,1156.4,0.55769419]
[1761548763844,2.1611392,1159.7,1156.5,0.55769419]
[1761548764053,2.1611392,1159.7,1156.6,0.55769419]
[1761548764242,2.1611392,1159.7,1156.7,0.55769419]
[1761548764447,2.1611392,1160.1,1156.8,0.55769419]
[1761548764646,7.3105431,1160.7,1156.9,0.55769419]
[1761548764944,7.3105431,1160.7,1157.0,0.55769419]
[1761548765147,7.3105431,1160.7,1156.2,0.63716913]
[1761548765344,7.3105431,1160.7,1156.4,0.63716913]
[1761548765542,3.0255949,1161.1,1156.5,0.56018504]
[1761548765746,2.1611392,1160.5,1156.6,0.56018504]
[1761548765943,2.1611392,1160.5,1156.7,0.56018504]
[1761548766141,2.1611392,1160.4,1156.8,0.56018504]
[1761548766441,2.1611392,1160.4,1156.9,0.56018504]
[1761548766643,2.1611392,1160.4,1157.0,0.56018504]
[1761548766945,2.1611392,1160.4,1156.4,0.63716913]
[1761548767143,2.1611392,1160.4,1156.5,0.56005935]
[1761548767345,2.1611392,1160.4,1156.6,0.56005935]
[1761548767542,2.1611392,1160.4,1156.7,0.56005935]
[1761548767744,2.1611392,1160.4,1156.8,0.56005935]
[1761548767941,2.1611392,1160.4,1156.9,0.56005935]
[1761548768244,2.1611392,1160.4,1157.0,0.56005935]
[1761548768445,2.1611392,1160.4,1156.4,0.63716913]
[1761548768645,2.1611392,1160.4,1156.5,0.55993175]
[1761548768843,2.1611392,1160.5,1156.6,0.55993175]
[1761548769048,2.1611392,1162.1,1156.7,0.55993175]
[1761548769346,2.1611392,1162.1,1156.8,0.55993175]
[1761548769541,2.1611392,1162.1,1156.9,0.55993175]
[1761548769843,2.1611392,1162.1,1157.0,0.55993175]
[1761548770041,2.1611392,1162.2,1157.1,0.55993175]
[1761548770245,2.1611392,1162.2,1157.2,0.55993175]
[1761548770546,2.1611392,1162.2,1157.3,0.55993175]
[1761548770846,2.1611392,1161.9,1157.4,0.55993175]
[1761548771044,2.1611392,1161.9,1156.6,0.63716913]
[1761548771246,2.1611392,1161.3,1156.7,1.19594906]
[1761548771443,2.1611392,1161.3,1156.8,0.55877993]
[1761548771748,2.1611392,1161.2,1156.9,0.55877993]
[1761548772044,2.1611392,1161.2,1157.0,0.55877993]
[1761548772249,2.1611392,1161.3,1157.1,0.55877993]
[1761548772447,2.1611392,1161.3,1157.2,0.55877993]
[1761548772646,2.1611392,1161.2,1157.3,0.55877993]
[1761548772848,2.1611392,1161.2,1156.6,0.63716913]
[1761548773149,2.1611392,1161.0,1156.7,1.19590676]
[1761548773350,2.1611392,1161.0,1156.8,0.55873763]
[1761548773555,2.1611392,1161.0,1156.7,0.63716913]
[1761548773556,2.1611392,1161.0,1156.9,0.55873763]
[1761548773850,2.1611392,1161.4,1157.0,0.55873763]
[1761548774149,2.1611392,1161.5,1157.3,0.63716913]
[1761548774350,2.1611392,1161.5,1157.4,0.55873763]
[1761548774649,2.1611392,1161.5,1157.5,0.55873763]
[1761548774850,2.1611392,1161.5,1157.6,0.55873763]
[1761548775048,2.1611392,1161.5,1157.7,0.55873763]
[1761548775248,2.1611392,1161.5,1157.2,0.63716913]
[1761548775446,2.1611392,1161.5,1157.3,0.55711123]
[1761548775645,2.1611392,1161.2,1157.4,0.55711123]
[1761548775949,2.1611392,1161.2,1157.5,0.55711123]
[1761548776246,2.1611392,1161.3,1156.8,0.63716913]
[1761548776446,2.1611392,1161.3,1156.9,0.55728354]
[1761548776649,2.1611392,1161.2,1157.0,0.55728354]
[1761548776949,2.1611392,1160.5,1157.1,1.19445267]
[1761548777149,2.1611392,1160.5,1157.2,0.55728354]
[1761548777445,2.1611392,1160.5,1157.3,0.55728354]
[1761548777649,2.1611392,1160.5,1157.4,0.55728354]
[1761548777850,2.1611392,1160.5,1157.0,0.63716913]
[1761548778048,2.1611392,1160.5,1157.1,0.55693524]
[1761548778245,2.1611392,1160.5,1157.2,0.55693524]
[1761548778550,2.1611392,1160.4,1157.3,2.31393524]
[1761548778748,2.1611392,1160.4,1157.3,1.757]
[1761548779548,3.0255949,1161.0,1157.3,1.757]
[1761548780352,2.1611392,1161.4,1157.3,1.757]
[1761548781549,2.1611392,1161.3,1157.3,1.757]
[1761548782750,2.1611392,1162.0,1157.3,1.757]
[1761548783249,2.1611392,1161.9,1157.3,1.757]
[1761548783747,2.1611392,1162.0,1157.3,1.757]
[1761548784755,2.1611392,1161.4,1157.3,1.757]
[1761548785252,2.1611392,1161.2,1157.3,1.757]
[1761548788458,2.1611392,1161.0,1157.3,1.757]
[1761548788958,3.0255949,1161.6,1157.3,1.757]
[1761548788959,2.1611392,1161.2,1157.3,1.757]
[1761548789353,2.1611392,1161.1,1157.3,1.757]
[1761548789855,2.1611392,1161.2,1157.3,1.757]
[1761548790460,2.1611392,1161.1,1157.3,1.757]
[1761548790961,2.1611392,1161.0,1157.3,1.757]
[1761548791562,2.1611392,1160.7,1157.3,1.757]
[1761548792263,2.1611392,1160.4,1157.3,1.757]
[1761548793662,2.1611392,1160.3,1157.3,1.757]
[1761548794563,2.1611392,1160.5,1157.3,1.757]
[1761548795060,2.1611392,1160.3,1157.3,1.757]
[1761548795760,2.1611392,1159.8,1157.3,1.757]
[1761548796158,3.0255949,1160.6,1157.3,1.757]
[1761548796159,2.1611392,1159.9,1157.3,1.757]
[1761548796860,2.1611392,1159.3,1157.3,1.757]
[1761548797267,2.1611392,1159.2,1157.3,1.757]
[1761548797661,2.1611392,1159.1,1157.3,1.757]
[1761548798062,3.0255949,1159.4,1157.3,1.757]
[1761548798365,2.1611392,1161.3,1157.3,1.757]
[1761548798864,2.1611392,1160.5,1157.3,1.757]
[1761548799262,2.1611392,1160.9,1157.3,1.757]
[1761548799765,2.1611392,1161.0,1157.3,1.757]
[1761548800864,2.1611392,1160.8,1157.3,1.757]
[1761548801466,2.1611392,1161.2,1157.3,1.757]
[1761548802064,2.1611392,1161.1,1157.3,1.757]
[1761548802569,2.1611392,1160.4,1157.3,1.757]
[1761548802964,2.1611392,1160.3,1157.3,1.757]
[1761548803363,2.1611392,1160.2,1157.3,1.757]
[1761548804061,2.1611392,1160.5,1157.3,1.757]
[1761548804466,2.1611392,1160.3,1157.3,1.757]
[1761548804667,2.1611392,1160.3,1156.2,0.63256152]
[1761548804965,2.1611392,1160.4,1156.3,0.55672442]
[1761548805163,2.1611392,1160.4,1156.4,0.55672442]
[1761548805362,2.1611392,1160.4,1156.5,0.55672442]
[1761548805566,2.1611392,1159.1,1156.2,0.63256152]
[1761548805765,2.1611392,1159.1,1156.0,0.86251851]
[1761548805766,2.1611392,1159.1,1156.3,0.55728622]
[1761548805962,2.1611392,1159.1,1156.4,0.55728622]
[1761548806263,2.1611392,1159.4,1156.5,0.55728622]
[1761548806563,2.1611392,1159.6,1156.0,0.63256152]
[1761548806762,2.1611392,1159.6,1156.1,0.55723827]
[1761548806967,2.1611392,1159.6,1156.2,0.55723827]
[1761548807167,2.1611392,1159.5,1156.3,1.18979979]
[1761548807368,2.1611392,1159.5,1156.4,0.55723827]
[1761548807569,2.1611392,1159.5,1156.5,2.39323827]
[1761548807768,2.1611392,1159.5,1156.6,0.55723827]
[1761548807969,2.1611392,1159.5,1156.7,0.55723827]
[1761548808170,2.1611392,1159.4,1156.5,1.836]
[1761548808365,0.15033664,1158.9,1156.6,0.55729777]
[1761548808670,0.15033664,1158.9,1156.7,0.55729777]
[1761548808967,0.15033664,1158.9,1156.5,1.836]
[1761548809167,0.15033664,1158.9,1156.6,0.55728382]
[1761548809366,0.15033664,1158.9,1156.7,0.55728382]
[1761548809571,0.15033664,1158.9,1156.8,1.335]
[1761548827285,0.15033664,1158.9,1156.9,1.668]
[1761548831790,2.1611392,1158.0,1156.9,0.33993329]
[1761548832392,2.1611392,1157.7,1156.9,0.33993329]
[1761548832709,2.1611392,1157.7,1156.8,1.335]
[1761548832892,5.1867341,1158.4,1156.8,1.335]
[1761548833592,0.15033664,1158.9,1156.8,1.335]
[1761548834093,2.1611392,1157.4,1156.8,1.335]
[1761548834489,2.1611392,1157.5,1156.8,1.335]
[1761548834796,2.1611392,1157.5,1153.5,0.15033664]
[1761548834989,3.0255949,1157.9,1153.6,1.1957253]
[1761548835191,3.0255949,1157.9,1153.7,0.56316378]
[1761548835396,3.0255949,1157.9,1153.8,0.56316378]
[1761548835691,0.15033664,1158.9,1153.9,0.56316378]
[1761548835891,0.15033664,1158.9,1154.0,0.56316378]
[1761548836091,0.15033664,1158.9,1154.1,0.56316378]
[1761548836291,0.15033664,1158.9,1154.2,0.56316378]
[1761548836496,0.15033664,1158.9,1154.3,0.56316378]
[1761548836695,0.15033664,1158.9,1154.4,0.56316378]
[1761548836894,0.15033664,1158.9,1154.5,0.56316378]
[1761548837097,0.15033664,1158.9,1153.7,0.63256152]
[1761548837397,0.15033664,1158.9,1153.8,0.56135505]
[1761548837597,0.15033664,1158.9,1153.9,0.56135505]
[1761548837795,0.15033664,1158.9,1154.0,2.23535505]
[1761548838093,0.15033664,1158.9,1154.1,0.56135505]
[1761548838293,0.15033664,1158.9,1154.2,0.56135505]
[1761548838498,0.15033664,1158.9,1154.3,0.56135505]
[1761548838698,0.15033664,1158.9,1154.4,0.56135505]
[1761548838998,0.15033664,1158.9,1154.0,1.674]
[1761548839198,0.15033664,1158.9,1154.1,0.55998734]
[1761548839398,0.15033664,1158.9,1154.2,0.55998734]
[1761548839598,0.15033664,1158.9,1154.3,0.55998734]
[1761548839797,0.15033664,1158.9,1154.0,1.674]
[1761548839997,0.15033664,1158.9,1154.1,0.55940957]
[1761548840193,0.15033664,1158.9,1154.2,0.55940957]
[1761548840494,0.15033664,1158.9,1154.3,0.55940957]
[1761548840696,0.15033664,1158.9,1154.0,1.674]
[1761548840897,0.15033664,1158.9,1154.1,0.55883191]
[1761548841094,0.15033664,1158.9,1154.2,0.55883191]
[1761548841298,0.15033664,1158.9,1154.3,0.55883191]
[1761548841499,0.15033664,1158.9,1154.0,1.674]
[1761548841695,0.15033664,1158.9,1154.1,0.55826336]
[1761548841899,0.15033664,1158.9,1154.0,1.674]
[1761548841900,0.15033664,1158.9,1154.2,0.55826336]
[1761548842099,0.15033664,1158.9,1154.3,0.55826336]
[1761548842399,0.15033664,1158.9,1154.0,1.674]
[1761548842593,0.15033664,1158.9,1154.1,0.55788238]
[1761548842798,0.15033664,1158.9,1154.2,0.55788238]
[1761548842996,0.15033664,1158.9,1154.3,0.55788277]
[1761548843296,0.15033664,1158.9,1154.0,1.674]
[1761548843599,0.15033664,1158.9,1154.1,0.5575718]
[1761548843798,0.15033664,1158.9,1154.2,0.5575718]
[1761548843995,0.15033664,1158.9,1154.0,1.674]
[1761548844199,0.15033664,1158.9,1154.1,0.55756249]
[1761548844397,0.15033664,1158.9,1154.2,0.55756249]
[1761548844600,0.15033664,1158.9,1154.0,1.674]
[1761548844798,0.15033664,1158.9,1154.1,0.55690926]
[1761548845100,0.15033664,1158.9,1154.2,0.55690926]
[1761548845297,0.15033664,1158.9,1154.0,1.674]
[1761548845498,0.15033664,1158.9,1154.1,0.55660822]
[1761548845698,0.15033664,1158.9,1154.0,1.674]
[1761548845899,0.15033664,1158.9,1154.1,0.55656574]
[1761548846100,0.15033664,1158.9,1154.2,0.55656574]
[1761548846302,0.15033664,1158.9,1154.7,0.63256152]
[1761548846601,0.15033664,1158.9,1154.8,0.55656574]
[1761548846801,0.15033664,1158.9,1154.9,0.55656574]
[1761548847099,0.15033664,1158.9,1155.0,0.55656574]
[1761548847311,0.15033664,1158.9,1155.1,0.55656574]
[1761548847498,0.15033664,1158.9,1155.2,0.55656574]
[1761548847797,0.15033664,1158.9,1154.7,0.63256152]
[1761548848001,0.15033664,1158.9,1154.8,0.55530887]
[1761548848199,0.15033664,1158.9,1154.7,0.63256152]
[1761548848200,0.15033664,1158.9,1154.9,0.55530887]
[1761548848400,0.15033664,1158.9,1155.0,0.55530887]
[1761548848596,0.15033664,1158.9,1155.1,0.55530887]
[1761548848798,0.15033664,1158.9,1155.2,0.55530887]
[1761548849001,0.15033664,1158.9,1154.7,0.63256152]
[1761548849210,0.15033664,1158.9,1154.8,0.55551554]
[1761548849402,0.15033664,1158.9,1154.9,0.55551554]
[1761548849698,0.15033664,1158.9,1155.0,0.55551554]
[1761548849901,0.15033664,1158.9,1155.1,0.55551554]
[1761548850102,0.15033664,1158.9,1155.2,0.55551554]
[1761548850299,0.15033664,1158.9,1154.5,0.63256152]
[1761548850499,0.15033664,1158.9,1154.6,0.55608086]
[1761548850699,0.15033664,1158.9,1154.7,0.55608086]
[1761548850898,0.15033664,1158.9,1154.8,0.55608086]
[1761548851103,0.15033664,1158.9,1154.9,0.55608086]
[1761548851301,0.15033664,1158.9,1155.0,0.55590845]
[1761548851506,0.15033664,1158.9,1154.3,0.63256152]
[1761548851705,0.15033664,1158.9,1154.4,0.55615689]
[1761548852003,0.15033664,1158.9,1154.5,0.55615689]
[1761548852302,0.15033664,1158.9,1154.6,0.55615689]
[1761548852504,0.15033664,1158.9,1154.7,0.55615689]
[1761548852700,0.15033664,1158.9,1154.8,0.55615689]
[1761548852901,0.15033664,1158.9,1154.3,0.63256152]
[1761548852902,0.15033664,1158.9,1154.9,0.55615689]
[1761548853205,0.15033664,1158.9,1154.2,0.63256152]
[1761548853403,0.15033664,1158.9,1154.6,0.63256152]
[1761548853606,0.15033664,1158.9,1154.7,0.55290036]
[1761548853802,0.15033664,1158.9,1154.8,0.55290036]
[1761548854107,0.15033664,1158.9,1154.9,0.55290036]
[1761548854402,0.15033664,1158.9,1154.6,0.63256152]
[1761548854403,0.15033664,1158.9,1155.0,0.55290036]
[1761548854604,0.15033664,1158.9,1154.5,0.63256152]
[1761548854909,0.15033664,1158.9,1154.6,0.55533995]
[1761548855108,0.15033664,1158.9,1154.7,0.55533995]
[1761548855304,0.15033664,1158.9,1154.4,0.63256152]
[1761548855305,0.15033664,1158.9,1154.8,0.55533995]
[1761548855605,0.15033664,1158.9,1154.9,0.55533995]
[1761548855803,0.15033664,1158.9,1154.5,0.63256152]
[1761548856005,0.15033664,1158.9,1154.6,0.55552268]
[1761548856204,0.15033664,1158.9,1154.7,0.55552268]
[1761548856403,0.15033664,1158.9,1154.8,0.55552268]
[1761548856603,0.15033664,1158.9,1154.9,0.55552268]
[1761548856904,0.15033664,1158.9,1154.4,0.63256152]
[1761548857108,0.15033664,1158.9,1154.5,0.55551472]
[1761548857308,0.15033664,1158.9,1154.6,0.55551472]
[1761548857604,0.15033664,1158.9,1154.4,0.63256152]
[1761548857605,0.15033664,1158.9,1154.7,0.55551472]
[1761548857810,0.15033664,1158.9,1154.8,1.18807624]
[1761548858106,0.15033664,1158.9,1154.9,0.55551472]
[1761548858304,0.15033664,1158.9,1155.0,0.55551472]
[1761548858509,0.15033664,1158.9,1155.1,0.55551472]
[1761548858708,0.15033664,1158.9,1155.2,0.55551472]
[1761548858909,0.15033664,1158.9,1155.3,0.55551472]
[1761548859110,0.15033664,1158.9,1154.8,0.63256152]
[1761548859410,0.15033664,1158.9,1154.9,0.55519947]
[1761548859608,0.15033664,1158.9,1155.0,0.55519947]
[1761548859904,0.15033664,1158.9,1155.1,0.55519947]
[1761548860205,0.15033664,1158.9,1155.2,0.55519947]
[1761548860404,0.15033664,1158.9,1155.3,0.55519947]
[1761548860609,0.15033664,1158.9,1155.4,0.55519947]
[1761548860910,0.15033664,1158.9,1154.9,0.63256152]
[1761548861210,0.15033664,1158.9,1155.2,0.63256152]
[1761548861411,0.15033664,1158.9,1155.3,0.55551201]
[1761548861706,0.15033664,1158.9,1155.4,0.55551201]
[1761548861907,0.15033664,1158.9,1155.5,0.55551201]
[1761548862110,0.15033664,1158.9,1155.6,0.55551201]
[1761548862410,0.15033664,1158.9,1155.2,0.63256152]
[1761548862709,0.15033664,1158.9,1155.3,0.55558661]
[1761548863011,0.15033664,1158.9,1155.4,0.55558661]
[1761548863210,0.15033664,1158.9,1155.5,0.55558661]
[1761548863410,0.15033664,1158.9,1155.6,0.55558661]
[1761548863611,0.15033664,1158.9,1155.2,0.63256152]
[1761548863811,0.15033664,1158.9,1155.3,0.55573393]
[1761548864008,0.15033664,1158.9,1155.4,0.55573393]
[1761548864211,0.15033664,1158.9,1155.5,0.55573393]
[1761548864409,0.15033664,1158.9,1155.6,0.55573393]
[1761548864613,0.15033664,1158.9,1155.2,0.63256152]
[1761548864813,0.15033664,1158.9,1155.3,0.5558995]
[1761548865109,0.15033664,1158.9,1155.4,0.5558995]
[1761548865313,0.15033664,1158.9,1155.5,0.5558995]
[1761548865509,0.15033664,1158.9,1155.6,0.5558995]
[1761548865707,0.15033664,1158.9,1155.1,0.63256152]
[1761548865909,0.15033664,1158.9,1155.2,0.55618909]
[1761548866113,0.15033664,1158.9,1155.3,0.55618909]
[1761548866311,0.15033664,1158.9,1155.4,0.55618909]
[1761548866613,0.15033664,1158.9,1155.5,0.55618909]
[1761548866810,0.15033664,1158.9,1155.1,0.63256152]
[1761548866811,0.15033664,1158.9,1155.6,0.55618909]
[1761548867116,0.15033664,1158.9,1155.0,0.63256152]
[1761548867414,0.15033664,1158.9,1155.1,1.18901164]
[1761548867615,0.15033664,1158.9,1155.2,0.55645012]
[1761548867815,0.15033664,1158.9,1155.3,0.55645012]
[1761548868012,0.15033664,1158.9,1155.4,0.55645012]
[1761548868213,0.15033664,1158.9,1155.5,0.55645012]
[1761548868412,0.15033664,1158.9,1155.0,0.63256152]
[1761548868614,0.15033664,1158.9,1155.1,1.81589876]
[1761548868816,0.15033664,1158.9,1155.2,0.55689876]
[1761548869117,0.15033664,1158.9,1155.3,0.55689876]
[1761548869316,0.15033664,1158.9,1155.4,0.55689876]
[1761548869617,0.15033664,1158.9,1155.1,1.259]
[1761548869813,0.15033664,1158.9,1155.2,0.55742824]
[1761548870017,0.15033664,1158.9,1155.3,0.55742824]
[1761548870213,0.15033664,1158.9,1155.1,1.259]
[1761548870414,0.15033664,1158.9,1155.2,0.5577474]
[1761548870617,0.15033664,1158.9,1155.1,1.259]
[1761548870815,0.15033664,1158.9,1155.2,0.55774822]
[1761548871113,0.15033664,1158.9,1155.3,0.5578367]
[1761548871414,0.15033664,1158.9,1155.1,1.259]
[1761548871614,0.15033664,1158.9,1155.2,0.55793668]
[1761548871814,0.15033664,1158.9,1155.1,1.259]
[1761548872018,0.15033664,1158.9,1155.2,0.55798007]
[1761548872220,0.15033664,1158.9,1155.1,1.259]
[1761548872518,0.15033664,1158.9,1155.2,0.5580932]
[1761548872715,0.15033664,1158.9,1155.1,1.259]
[1761548872915,0.15033664,1158.9,1155.2,0.5580042]
[1761548873215,0.15033664,1158.9,1155.1,1.259]
[1761548873419,0.15033664,1158.9,1155.2,0.55819584]
[1761548873714,0.15033664,1158.9,1155.1,1.259]
[1761548874020,0.15033664,1158.9,1155.2,0.55821298]
[1761548874214,0.15033664,1158.9,1155.1,1.259]
[1761548875920,0.15033664,1158.9,1155.2,0.558343]
[1761548876117,0.15033664,1158.9,1155.1,1.259]
[1761548877625,2.31147584,1158.9,1155.1,1.259]
[1761548878018,2.1611392,1158.7,1155.1,1.259]
[1761548878518,2.1611392,1158.6,1155.1,1.259]
[1761548879724,2.1611392,1158.5,1155.1,1.259]
[1761548880620,2.1611392,1158.4,1155.1,1.259]
[1761548881119,2.1611392,1158.3,1155.1,1.259]
[1761548881723,2.1611392,1158.8,1155.1,1.259]
[1761548882319,2.31147584,1158.9,1155.1,1.259]
[1761548882720,2.1611392,1158.2,1155.1,1.259]
[1761548883821,2.1611392,1158.3,1155.1,1.259]
[1761548884327,3.0255949,1158.6,1155.1,1.259]
[1761548884824,0.15033664,1158.9,1155.1,1.259]
[1761548886929,0.15033664,1158.9,1155.2,1.703]
[1761548888425,2.1611392,1158.2,1155.2,1.703]
[1761548889427,2.1611392,1158.1,1155.2,1.703]
[1761548891531,2.1611392,1158.2,1155.2,1.703]
[1761548892135,2.1611392,1158.3,1155.2,1.703]
[1761548892334,2.1611392,1158.5,1155.2,1.703]
[1761548892738,2.1611392,1158.4,1155.2,1.703]
[1761548894735,2.1611392,1158.6,1155.2,1.703]
[1761548895839,2.1611392,1158.1,1155.2,1.703]
[1761548896040,2.1611392,1158.3,1155.2,1.703]
[1761548896539,2.1611392,1158.1,1155.2,1.703]
[1761548897239,2.1611392,1158.1,1155.3,1.81]
[1761548897941,3.0255949,1158.5,1155.3,1.81]
[1761548898438,2.1611392,1158.8,1155.3,1.81]
[1761548898638,2.1611392,1158.5,1155.3,1.81]
[1761548899139,2.1611392,1158.7,1155.3,1.81]
[1761548899839,2.1611392,1158.6,1155.3,1.81]
[1761548900545,5.1867341,1158.6,1155.3,1.81]
[1761548900742,2.1611392,1158.1,1155.3,1.81]
[1761548901341,2.1611392,1158.0,1155.3,1.81]
[1761548902245,2.1611392,1157.9,1155.3,1.81]
[1761548902750,2.1611392,1157.6,1155.3,1.81]
[1761548903349,2.1611392,1157.5,1155.3,1.81]
[1761548903848,2.1611392,1157.8,1155.3,1.81]
[1761548904850,2.1611392,1158.1,1155.3,1.81]
[1761548908053,2.1611392,1158.2,1155.3,1.81]
[1761548913758,2.1611392,1157.7,1155.3,1.81]
[1761548914156,2.1611392,1157.9,1155.3,1.81]
[1761548914658,2.1611392,1158.0,1155.3,1.81]
[1761548914859,0.15033664,1158.9,1155.4,0.56887398]
[1761548915160,0.15033664,1158.9,1155.3,1.81]
[1761548915460,0.15033664,1158.9,1155.4,2.4358748]
[1761548915660,0.15033664,1158.9,1155.4,1.867]
[1761548918162,2.1611392,1158.8,1155.4,1.867]
[1761548919162,0.15033664,1158.9,1155.4,1.867]
[1761548919163,2.1611392,1158.7,1155.4,1.867]
[1761548920059,2.1611392,1158.8,1155.4,1.867]
[1761548921159,2.1611392,1158.7,1155.4,1.867]
[1761548921864,2.1611392,1158.4,1155.4,1.867]
[1761548922769,2.1611392,1158.5,1155.4,1.867]
[1761548923268,2.31147584,1158.9,1155.5,0.56903628]
[1761548923462,2.31147584,1158.9,1155.6,0.56903628]
[1761548923661,2.1611392,1158.8,1155.7,0.56903628]
[1761548923862,2.1611392,1158.8,1155.8,0.56903628]
[1761548924061,2.1611392,1158.8,1155.4,1.867]
[1761548924265,2.1611392,1158.7,1155.5,0.5690626]
[1761548924462,2.1611392,1158.7,1155.6,0.5690626]
[1761548924662,2.1611392,1158.7,1155.7,0.5690626]
[1761548924866,0.15033664,1158.9,1155.8,0.5690626]
[1761548925066,0.15033664,1158.9,1155.4,1.867]
[1761548925265,0.15033664,1158.9,1155.5,0.56906905]
[1761548925462,0.15033664,1158.9,1155.6,0.56906905]
[1761548925667,0.15033664,1158.9,1155.7,0.56906905]
[1761548925968,0.15033664,1158.9,1155.8,0.56906905]
[1761548926264,0.15033664,1158.9,1155.4,1.867]
[1761548926463,0.15033664,1158.9,1155.5,0.56903673]
[1761548926667,0.15033664,1158.9,1155.6,0.56903673]
[1761548926862,0.15033664,1158.9,1155.7,0.56903673]
[1761548927167,0.15033664,1158.9,1155.8,0.56903673]
[1761548927463,0.15033664,1158.9,1155.4,1.867]
[1761548927663,0.15033664,1158.9,1155.5,0.5689927]
[1761548927864,0.15033664,1158.9,1155.6,0.5689927]
[1761548928068,0.15033664,1158.9,1155.7,0.5689927]
[1761548928263,0.15033664,1158.9,1155.8,0.5689927]
[1761548928565,0.15033664,1158.9,1155.4,1.867]
[1761548928765,0.15033664,1158.9,1155.5,0.56890644]
[1761548928964,0.15033664,1158.9,1155.6,0.56890644]
[1761548929165,0.15033664,1158.9,1155.7,0.56890644]
[1761548929370,0.15033664,1158.9,1155.8,0.56890644]
[1761548929668,0.15033664,1158.9,1155.4,1.867]
[1761548929863,0.15033664,1158.9,1155.5,0.56880118]
[1761548930068,0.15033664,1158.9,1155.6,0.56880118]
[1761548930268,0.15033664,1158.9,1155.7,0.56880118]
[1761548930468,0.15033664,1158.9,1155.8,0.56880118]
[1761548930666,0.15033664,1158.9,1155.4,1.867]
[1761548930866,0.15033664,1158.9,1155.5,0.56864129]
[1761548931066,0.15033664,1158.9,1155.6,0.56864129]